[Event "Polofinale MCR junioru 2023"]
[Site "Czech Republic"]
[Date "2023.11.14"]
[Round "4.11"]
[White "Davidek, Zdenek"]
[Black "Pavlis, Matej"]
[Result "0-1"]
[TimeControl "90 min per 40 moves + 15 min + 30 sec / move from move 1"]
[WhiteFideId "23725001"]
[BlackFideId "23735767"]
[WhiteElo "2099"]
[BlackElo "1974"]

1. c4 {[%clk 01:30:42]} {[%emt 00:00:17]} e6 {[%clk 01:30:47]} {[%emt
00:00:14]} 2. d4 {[%clk 01:30:43]} {[%emt 00:00:29]} d5 {[%clk 01:31:12]}
{[%emt 00:00:05]} 3. Nc3 {[%clk 01:30:19]} {[%emt 00:00:54]} c6 {[%clk
01:31:11]} {[%emt 00:00:31]} 4. e3 {[%clk 01:29:09]} {[%emt 00:01:39]} f5
{[%clk 01:31:25]} {[%emt 00:00:17]} 5. Bd3 {[%clk 01:26:05]} {[%emt 00:03:33]}
Nf6 {[%clk 01:31:48]} {[%emt 00:00:07]} 6. Bd2 {[%clk 01:18:46]} {[%emt
00:07:48]} Bd6 {[%clk 01:29:40]} {[%emt 00:02:39]} 7. Nf3 {[%clk 01:18:09]}
{[%emt 00:01:08]} O-O {[%clk 01:29:55]} {[%emt 00:00:15]} 8. Qe2 {[%clk
01:17:43]} {[%emt 00:00:56]} Ne4 {[%clk 01:28:08]} {[%emt 00:02:17]} 9. O-O
{[%clk 00:54:32]} {[%emt 00:23:40]} Nd7 {[%clk 01:22:27]} {[%emt 00:06:11]} 10.
Ne1 {[%clk 00:52:35]} {[%emt 00:02:28]} Qe7 {[%clk 01:02:34]} {[%emt 00:20:23]}
11. f4 {[%clk 00:49:47]} {[%emt 00:03:18]} Ndf6 {[%clk 01:02:27]} {[%emt
00:00:37]} 12. c5 {[%clk 00:46:38]} {[%emt 00:03:39]} Bc7 {[%clk 01:02:16]}
{[%emt 00:00:41]} 13. Nf3 {[%clk 00:46:27]} {[%emt 00:00:40]} Bd7 {[%clk
01:02:31]} {[%emt 00:00:15]} 14. Nb1 {[%clk 00:28:59]} {[%emt 00:17:59]} Be8
{[%clk 01:01:10]} {[%emt 00:01:51]} 15. Be1 {[%clk 00:29:01]} {[%emt 00:00:28]}
Bh5 {[%clk 01:00:39]} {[%emt 00:01:00]} 16. Bh4 {[%clk 00:29:22]} {[%emt
00:00:09]} h6 {[%clk 00:57:37]} {[%emt 00:03:33]} 17. Qc2 {[%clk 00:26:20]}
{[%emt 00:03:31]} g5 {[%clk 00:53:24]} {[%emt 00:04:43]} 18. fxg5 {[%clk
00:26:14]} {[%emt 00:00:36]} hxg5 {[%clk 00:53:41]} {[%emt 00:00:13]} 19. Nxg5
{[%clk 00:16:27]} {[%emt 00:10:18]} Nxg5 {[%clk 00:53:50]} {[%emt 00:00:21]} 20.
Bxg5 {[%clk 00:16:01]} {[%emt 00:00:55]} Bxh2+ {[%clk 00:54:15]} {[%emt
00:00:06]} 21. Kh1 {[%clk 00:13:18]} {[%emt 00:03:13]} Bg3 {[%clk 00:48:58]}
{[%emt 00:05:47]} 22. Bf4 {[%clk 00:07:10]} {[%emt 00:06:38]} Bd1 {[%clk
00:47:51]} {[%emt 00:01:37]} 23. Bxg3 {[%clk 00:03:31]} {[%emt 00:04:09]} Bxc2
{[%clk 00:48:15]} {[%emt 00:00:05]} 24. Bxc2 {[%clk 00:03:53]} {[%emt
00:00:08]} Ng4 {[%clk 00:46:25]} {[%emt 00:02:20]} 25. Bf4 {[%clk 00:03:25]}
{[%emt 00:00:59]} Qh4+ {[%clk 00:46:26]} {[%emt 00:00:29]} 26. Kg1 {[%clk
00:03:50]} {[%emt 00:00:05]} Rf7 {[%clk 00:46:45]} {[%emt 00:00:10]} 27. Bd1
{[%clk 00:04:03]} {[%emt 00:00:17]} Rh7 {[%clk 00:46:34]} {[%emt 00:00:41]} 28.
Bxg4 {[%clk 00:04:28]} {[%emt 00:00:05]} fxg4 {[%clk 00:46:44]} {[%emt
00:00:20]} 29. Nd2 {[%clk 00:03:01]} {[%emt 00:01:57]} g3 {[%clk 00:47:07]}
{[%emt 00:00:07]} 0-1

[Event "Polofinale MCR junioru 2023"]
[Site "Czech Republic"]
[Date "2023.11.14"]
[Round "4.12"]
[White "Benes, Jachym"]
[Black "Lang, Simon"]
[Result "0-1"]
[TimeControl "90 min per 40 moves + 15 min + 30 sec / move from move 1"]
[WhiteFideId "23710870"]
[BlackFideId "23712449"]
[WhiteElo "1950"]
[BlackElo "2090"]

1. d4 {[%clk 01:22:58]} {[%emt 00:08:02]} Nf6 {[%clk 01:30:33]} {[%emt
00:00:27]} 2. c4 {[%clk 01:23:23]} {[%emt 00:00:05]} e6 {[%clk 01:30:36]}
{[%emt 00:00:27]} 3. Nf3 {[%clk 01:23:48]} {[%emt 00:00:05]} d5 {[%clk
01:30:24]} {[%emt 00:00:41]} 4. Nc3 {[%clk 01:24:08]} {[%emt 00:00:11]} Be7
{[%clk 01:30:12]} {[%emt 00:00:42]} 5. cxd5 {[%clk 01:24:30]} {[%emt 00:00:09]}
exd5 {[%clk 01:29:00]} {[%emt 00:01:41]} 6. Bg5 {[%clk 01:24:46]} {[%emt
00:00:14]} c6 {[%clk 01:28:45]} {[%emt 00:00:46]} 7. Qc2 {[%clk 01:24:44]}
{[%emt 00:00:31]} O-O {[%clk 01:26:27]} {[%emt 00:02:47]} 8. e3 {[%clk
01:24:42]} {[%emt 00:00:33]} Re8 {[%clk 01:26:05]} {[%emt 00:00:52]} 9. Bd3
{[%clk 01:25:05]} {[%emt 00:00:07]} Nbd7 {[%clk 01:26:17]} {[%emt 00:00:17]} 10.
O-O {[%clk 01:25:29]} {[%emt 00:00:06]} Nf8 {[%clk 01:26:16]} {[%emt 00:00:28]}
11. Rab1 {[%clk 01:25:05]} {[%emt 00:00:58]} Ng6 {[%emt 00:05:59]} 12. b4
{[%clk 01:24:53]} {[%emt 00:00:08]} a6 {[%clk 01:21:23]} {[%emt 00:00:28]} 13.
a4 {[%clk 01:24:59]} {[%emt 00:00:25]} Ne4 {[%clk 01:10:40]} {[%emt 00:11:12]}
14. Bxe7 {[%clk 01:24:27]} {[%emt 00:01:02]} Qxe7 {[%clk 01:11:04]} {[%emt
00:00:06]} 15. b5 {[%clk 01:17:47]} {[%emt 00:07:10]} axb5 {[%clk 01:08:54]}
{[%emt 00:02:40]} 16. axb5 {[%clk 01:17:56]} {[%emt 00:00:20]} Bg4 {[%clk
01:08:34]} {[%emt 00:00:50]} 17. Bxe4 {[%clk 01:14:57]} {[%emt 00:03:30]} dxe4
{[%clk 01:08:56]} {[%emt 00:00:07]} 18. Nd2 {[%clk 01:15:23]} {[%emt 00:00:05]}
f5 {[%clk 01:05:08]} {[%emt 00:04:17]} 19. bxc6 {[%clk 01:10:17]} {[%emt
00:05:37]} bxc6 {[%clk 01:05:28]} {[%emt 00:00:10]} 20. Rfc1 {[%clk 00:59:41]}
{[%emt 00:11:05]} Qg5 {[%clk 01:00:55]} {[%emt 00:05:03]} 21. Nf1 {[%clk
00:59:26]} {[%emt 00:00:45]} h5 {[%clk 00:57:58]} {[%emt 00:03:28]} 22. Kh1
{[%emt 00:08:51]} h4 {[%clk 00:46:48]} {[%emt 00:10:25]} 23. Nd2 {[%clk
00:46:05]} {[%emt 00:06:45]} h3 {[%clk 00:41:46]} {[%emt 00:05:32]} 24. g3
{[%clk 00:45:10]} {[%emt 00:01:25]} Rad8 {[%clk 00:30:38]} {[%emt 00:11:38]} 25.
Rb6 {[%clk 00:37:38]} {[%emt 00:08:02]} c5 {[%clk 00:25:54]} {[%emt 00:05:14]}
26. dxc5 {[%clk 00:37:57]} {[%emt 00:00:11]} Ne5 {[%clk 00:26:14]} {[%emt
00:00:10]} 27. Nb3 {[%clk 00:35:30]} {[%emt 00:02:57]} Bf3+ {[%clk 00:25:45]}
{[%emt 00:00:59]} 28. Kg1 {[%clk 00:34:06]} {[%emt 00:01:53]} Bg2 {[%clk
00:25:50]} {[%emt 00:00:25]} 29. f4 {[%clk 00:32:42]} {[%emt 00:01:55]} exf3
{[%clk 00:25:52]} {[%emt 00:00:28]} 0-1

[Event "Polofinale MCR junioru 2023"]
[Site "Czech Republic"]
[Date "2023.11.14"]
[Round "4.13"]
[White "Mach, Petr"]
[Black "Pressler, Tobias"]
[Result "1-0"]
[TimeControl "90 min per 40 moves + 15 min + 30 sec / move from move 1"]
[WhiteFideId "383546"]
[BlackFideId "23715359"]
[WhiteElo "2084"]
[BlackElo "1937"]

1. Nf3 {[%clk 01:30:59]} d5 {[%clk 01:30:30]} {[%emt 00:00:30]} 2. g3 {[%clk
01:31:26]} {[%emt 00:00:04]} Bg4 {[%clk 01:25:08]} {[%emt 00:05:52]} 3. d4
{[%clk 01:30:31]} {[%emt 00:01:24]} Nc6 {[%clk 01:24:41]} {[%emt 00:00:58]} 4.
Bg2 {[%clk 01:30:49]} {[%emt 00:00:10]} Qd7 {[%clk 01:23:20]} {[%emt 00:01:52]}
5. O-O {[%clk 01:26:03]} {[%emt 00:05:16]} f6 {[%clk 01:23:43]} {[%emt
00:00:07]} 6. c4 {[%clk 01:25:44]} {[%emt 00:00:49]} e6 {[%clk 01:21:58]}
{[%emt 00:02:16]} 7. Nc3 {[%clk 01:21:00]} {[%emt 00:05:13]} O-O-O {[%clk
01:22:18]} {[%emt 00:00:10]} 8. c5 {[%clk 01:07:15]} {[%emt 00:14:17]} e5
{[%clk 01:19:12]} {[%emt 00:03:35]} 9. b4 {[%clk 01:05:07]} {[%emt 00:02:38]}
e4 {[%clk 01:18:34]} {[%emt 00:01:08]} 10. b5 {[%clk 01:04:47]} {[%emt
00:00:50]} exf3 {[%clk 01:13:52]} {[%emt 00:05:11]} 11. bxc6 {[%clk 01:03:45]}
{[%emt 00:01:32]} Qxc6 {[%clk 01:14:13]} {[%emt 00:00:09]} 12. exf3 {[%clk
01:04:09]} {[%emt 00:00:07]} Bf5 {[%clk 01:14:12]} {[%emt 00:00:31]} 13. Qb3
{[%clk 00:55:47]} {[%emt 00:08:51]} Ne7 {[%clk 01:10:44]} {[%emt 00:03:59]} 14.
Bf4 {[%clk 00:40:18]} {[%emt 00:15:58]} a6 {[%clk 01:10:06]} {[%emt 00:01:09]}
15. Rfc1 {[%clk 00:35:21]} {[%emt 00:05:26]} g5 {[%clk 01:10:26]} {[%emt
00:00:10]} 16. Bd6 {[%clk 00:35:13]} {[%emt 00:00:35]} cxd6 {[%clk 01:05:21]}
{[%emt 00:05:39]} 17. cxd6 {[%clk 00:35:35]} {[%emt 00:00:08]} Kb8 {[%clk
01:05:28]} {[%emt 00:00:22]} 18. dxe7 {[%clk 00:33:45]} {[%emt 00:02:21]} Bxe7
{[%clk 01:05:54]} {[%emt 00:00:04]} 19. f4 {[%clk 00:32:33]} {[%emt 00:01:41]}
Be6 {[%clk 01:05:40]} {[%emt 00:00:45]} 20. f5 {[%clk 00:32:58]} {[%emt
00:00:06]} Bf7 {[%clk 01:06:05]} {[%emt 00:00:04]} 21. Rab1 {[%clk 00:30:40]}
{[%emt 00:02:47]} Ka7 {[%clk 01:05:21]} {[%emt 00:01:14]} 22. Nxd5 {[%clk
00:16:40]} {[%emt 00:14:30]} Bxd5 {[%clk 01:04:07]} {[%emt 00:01:44]} 23. Rxc6
{[%clk 00:17:02]} {[%emt 00:00:09]} Bxb3 {[%clk 01:04:26]} {[%emt 00:00:11]} 24.
Rc7 {[%clk 00:17:25]} {[%emt 00:00:07]} Bd5 {[%clk 01:01:24]} {[%emt 00:03:32]}
25. Bxd5 {[%clk 00:17:49]} {[%emt 00:00:06]} Rxd5 {[%clk 01:01:50]} {[%emt
00:00:04]} 26. Rbxb7+ {[%clk 00:18:09]} {[%emt 00:00:10]} Ka8 {[%clk 01:02:16]}
{[%emt 00:00:04]} 27. Rxe7 {[%clk 00:18:25]} {[%emt 00:00:14]} Ra5 {[%clk
01:02:15]} {[%emt 00:00:31]} 28. Ra7+ {[%clk 00:17:55]} {[%emt 00:01:00]} Kb8
{[%clk 01:02:41]} {[%emt 00:00:04]} 29. Reb7+ {[%clk 00:18:16]} {[%emt
00:00:09]} Kc8 {[%clk 01:03:06]} {[%emt 00:00:05]} 30. Rf7 {[%clk 00:18:36]}
{[%emt 00:00:09]} Kb8 {[%clk 01:03:32]} {[%emt 00:00:05]} 31. Rab7+ {[%clk
00:17:16]} {[%emt 00:01:50]} Kc8 {[%clk 01:02:48]} {[%emt 00:01:13]} 32. Rb6
{[%clk 00:17:28]} {[%emt 00:00:19]} Rxa2 {[%clk 01:02:55]} {[%emt 00:00:23]} 33.
Rfxf6 {[%clk 00:17:48]} {[%emt 00:00:09]} a5 {[%clk 01:03:03]} {[%emt
00:00:22]} 34. Ra6 {[%clk 00:17:58]} {[%emt 00:00:20]} Kb7 {[%clk 01:03:29]}
{[%emt 00:00:05]} 35. Rfb6+ {[%clk 00:18:03]} {[%emt 00:00:24]} Kc7 {[%clk
01:03:55]} {[%emt 00:00:05]} 36. Rb5 {[%emt 00:01:54]} 1-0

[Event "Polofinale MCR junioru 2023"]
[Site "Czech Republic"]
[Date "2023.11.14"]
[Round "4.14"]
[White "Bohacek, Jan Andrej"]
[Black "Hrbek, Jachym"]
[Result "1-0"]
[TimeControl "90 min per 40 moves + 15 min + 30 sec / move from move 1"]
[WhiteFideId "23727357"]
[BlackFideId "23709138"]
[WhiteElo "2066"]
[BlackElo "1913"]

1. d4 {[%clk 01:30:49]} {[%emt 00:00:10]} d5 {[%clk 01:29:57]} {[%emt
00:00:55]} 2. Nc3 {[%clk 01:30:36]} {[%emt 00:00:52]} c6 {[%clk 01:29:56]}
{[%emt 00:00:31]} 3. Bf4 {[%clk 01:29:56]} {[%emt 00:01:10]} Nf6 {[%clk
01:29:23]} {[%emt 00:01:03]} 4. e3 {[%clk 01:29:55]} {[%emt 00:00:31]} g6
{[%clk 01:24:36]} {[%emt 00:05:17]} 5. h3 {[%clk 01:29:52]} {[%emt 00:00:33]}
Bg7 {[%clk 01:24:51]} {[%emt 00:00:15]} 6. Nf3 {[%clk 01:29:46]} {[%emt
00:00:36]} O-O {[%clk 01:24:52]} {[%emt 00:00:29]} 7. Be2 {[%clk 01:25:09]}
{[%emt 00:05:07]} Nbd7 {[%clk 01:21:36]} {[%emt 00:03:46]} 8. a4 {[%clk
01:24:26]} {[%emt 00:01:13]} a6 {[%clk 01:17:52]} {[%emt 00:04:13]} 9. O-O
{[%clk 01:17:57]} {[%emt 00:07:00]} b6 {[%clk 01:15:23]} {[%emt 00:02:58]} 10.
a5 {[%clk 01:10:03]} {[%emt 00:08:25]} Bb7 {[%clk 01:11:04]} {[%emt 00:04:48]}
11. axb6 {[%clk 01:07:15]} {[%emt 00:03:20]} Nxb6 {[%clk 01:02:01]} {[%emt
00:09:33]} 12. Na4 {[%clk 00:53:46]} {[%emt 00:13:59]} Nxa4 {[%clk 00:58:11]}
{[%emt 00:04:19]} 13. Rxa4 {[%clk 00:54:05]} {[%emt 00:00:10]} Qb6 {[%clk
00:58:28]} {[%emt 00:00:13]} 14. Qd2 {[%clk 00:33:53]} {[%emt 00:20:43]} a5
{[%clk 00:56:12]} {[%emt 00:02:46]} 15. Rb1 {[%clk 00:19:50]} {[%emt 00:14:34]}
Ne4 {[%clk 00:53:57]} {[%emt 00:02:45]} 16. Qe1 {[%clk 00:19:55]} {[%emt
00:00:24]} Ba6 {[%clk 00:53:41]} {[%emt 00:00:46]} 17. Bd3 {[%clk 00:19:11]}
{[%emt 00:01:13]} Bb5 {[%clk 00:52:00]} {[%emt 00:02:12]} 18. Ra3 {[%clk
00:19:24]} {[%emt 00:00:17]} Nd6 {[%clk 00:50:18]} {[%emt 00:02:11]} 19. Nd2
{[%clk 00:15:25]} {[%emt 00:04:30]} Bxd3 {[%clk 00:45:00]} {[%emt 00:05:49]} 20.
cxd3 {[%clk 00:15:07]} {[%emt 00:00:47]} Nb5 {[%clk 00:45:18]} {[%emt
00:00:12]} 21. Ra4 {[%clk 00:14:37]} {[%emt 00:01:00]} Nd6 {[%clk 00:41:09]}
{[%emt 00:04:39]} 22. Qc1 {[%clk 00:11:20]} {[%emt 00:03:48]} Qb5 {[%clk
00:33:41]} {[%emt 00:07:57]} 23. Qc2 {[%clk 00:11:05]} {[%emt 00:00:46]} Rfb8
{[%clk 00:21:11]} {[%emt 00:12:59]} 24. b4 {[%clk 00:10:14]} {[%emt 00:01:21]}
axb4 {[%clk 00:19:28]} {[%emt 00:02:13]} 25. Raxb4 {[%clk 00:10:17]} {[%emt
00:00:27]} Qxb4 {[%clk 00:19:46]} {[%emt 00:00:12]} 26. Rxb4 {[%clk 00:10:39]}
{[%emt 00:00:08]} Rxb4 {[%clk 00:20:14]} {[%emt 00:00:02]} 27. Qxc6 {[%clk
00:09:57]} {[%emt 00:01:12]} Rc8 {[%clk 00:20:08]} {[%emt 00:00:35]} 28. Qxd5
{[%clk 00:10:00]} {[%emt 00:00:28]} Rb5 {[%clk 00:19:04]} {[%emt 00:01:34]} 29.
Qf3 {[%clk 00:07:48]} {[%emt 00:02:41]} e5 {[%clk 00:17:00]} {[%emt 00:02:35]}
30. dxe5 {[%clk 00:07:12]} {[%emt 00:01:06]} Bxe5 {[%clk 00:17:15]} {[%emt
00:00:15]} 31. d4 {[%clk 00:06:16]} {[%emt 00:01:26]} Bxf4 {[%clk 00:16:47]}
{[%emt 00:00:58]} 32. Qxf4 {[%clk 00:06:39]} {[%emt 00:00:07]} Rc1+ {[%clk
00:15:03]} {[%emt 00:02:15]} 33. Kh2 {[%clk 00:07:02]} {[%emt 00:00:06]} Rb2
{[%clk 00:13:36]} {[%emt 00:01:57]} 34. Nf3 {[%clk 00:06:21]} {[%emt 00:01:11]}
Rb6 {[%clk 00:11:12]} {[%emt 00:02:53]} 35. Qf6 {[%clk 00:05:40]} {[%emt
00:01:11]} Nc8 {[%clk 00:09:15]} {[%emt 00:02:28]} 36. Qd8+ {[%clk 00:05:51]}
{[%emt 00:00:19]} Kg7 {[%clk 00:09:40]} {[%emt 00:00:06]} 37. Ne5 {[%clk
00:05:01]} {[%emt 00:01:18]} 1-0

[Event "Polofinale MCR junioru 2023"]
[Site "Czech Republic"]
[Date "2023.11.14"]
[Round "4.15"]
[White "Hlavina, Matous"]
[Black "Svadlenka, Michal"]
[Result "1-0"]
[TimeControl "90 min per 40 moves + 15 min + 30 sec / move from move 1"]
[WhiteFideId "386650"]
[BlackFideId "23717068"]
[WhiteElo "2134"]
[BlackElo "1689"]

1. e4 {[%clk 01:30:58]} c5 {[%clk 01:30:27]} {[%emt 00:00:34]} 2. Nf3 {[%clk
01:31:23]} {[%emt 00:00:05]} d6 {[%clk 01:30:51]} {[%emt 00:00:06]} 3. d4
{[%clk 01:31:50]} {[%emt 00:00:03]} cxd4 {[%clk 01:31:16]} {[%emt 00:00:04]} 4.
Nxd4 {[%clk 01:32:17]} {[%emt 00:00:04]} Nf6 {[%clk 01:31:42]} {[%emt
00:00:04]} 5. Nc3 {[%clk 01:32:44]} {[%emt 00:00:03]} g6 {[%clk 01:32:03]}
{[%emt 00:00:08]} 6. Be3 {[%clk 01:33:00]} {[%emt 00:00:14]} Bg7 {[%clk
01:32:27]} {[%emt 00:00:07]} 7. f3 {[%clk 01:33:25]} {[%emt 00:00:04]} O-O
{[%clk 01:32:51]} {[%emt 00:00:06]} 8. Qd2 {[%clk 01:33:52]} {[%emt 00:00:03]}
Nc6 {[%clk 01:33:15]} {[%emt 00:00:07]} 9. O-O-O {[%clk 01:34:16]} {[%emt
00:00:06]} d5 {[%clk 01:33:38]} {[%emt 00:00:07]} 10. Nxc6 {[%clk 01:34:28]}
{[%emt 00:00:18]} bxc6 {[%clk 01:34:03]} {[%emt 00:00:05]} 11. Bc4 {[%clk
01:34:52]} {[%emt 00:00:06]} e6 {[%clk 01:34:24]} {[%emt 00:00:09]} 12. Bb3
{[%clk 01:35:09]} {[%emt 00:00:12]} Bb7 {[%clk 01:33:43]} {[%emt 00:01:11]} 13.
Na4 {[%clk 01:34:23]} {[%emt 00:01:16]} Nd7 {[%clk 01:30:48]} {[%emt 00:03:25]}
14. h4 {[%clk 01:32:56]} {[%emt 00:01:58]} Qc7 {[%clk 01:20:34]} {[%emt
00:10:44]} 15. Bf4 {[%clk 01:07:30]} {[%emt 00:25:56]} e5 {[%clk 01:17:13]}
{[%emt 00:03:51]} 16. Bh6 {[%clk 01:06:58]} {[%emt 00:01:01]} Nb6 {[%clk
01:12:28]} {[%emt 00:05:16]} 17. Nc5 {[%clk 00:49:38]} {[%emt 00:17:50]} Rad8
{[%clk 01:02:14]} {[%emt 00:10:44]} 18. Qg5 {[%clk 00:38:35]} {[%emt 00:11:31]}
f6 {[%clk 00:56:07]} {[%emt 00:06:38]} 19. Qe3 {[%clk 00:37:21]} {[%emt
00:01:40]} Bc8 {[%clk 00:54:20]} {[%emt 00:02:21]} 20. a4 {[%clk 00:36:31]}
{[%emt 00:01:20]} Kh8 {[%clk 00:46:03]} {[%emt 00:08:47]} 21. Bxg7+ {[%clk
00:33:23]} {[%emt 00:03:38]} Kxg7 {[%emt 00:01:15]} 22. Qc3 {[%clk 00:32:19]}
{[%emt 00:01:23]} d4 {[%clk 00:36:10]} {[%emt 00:09:49]} 23. Qb4 {[%clk
00:31:43]} {[%emt 00:01:05]} Rd6 {[%clk 00:34:43]} {[%emt 00:01:58]} 24. a5
{[%clk 00:31:09]} {[%emt 00:01:04]} Na8 {[%clk 00:34:53]} {[%emt 00:00:21]} 25.
g4 {[%clk 00:29:36]} {[%emt 00:02:03]} Kh8 {[%clk 00:34:06]} {[%emt 00:01:16]}
26. Rh2 {[%clk 00:27:36]} {[%emt 00:02:31]} Qe7 {[%clk 00:32:23]} {[%emt
00:02:13]} 27. Rdh1 {[%clk 00:26:56]} {[%emt 00:01:10]} Nc7 {[%clk 00:32:10]}
{[%emt 00:00:42]} 28. Qd2 {[%clk 00:20:48]} {[%emt 00:06:38]} Be6 {[%clk
00:25:05]} {[%emt 00:07:36]} 29. Ba4 {[%clk 00:20:24]} {[%emt 00:00:53]} Bc4
{[%clk 00:21:32]} {[%emt 00:04:03]} 30. Qb4 {[%clk 00:15:48]} {[%emt 00:05:05]}
Bb5 {[%clk 00:20:29]} {[%emt 00:01:34]} 31. g5 {[%clk 00:11:24]} {[%emt
00:04:55]} Bxa4 {[%clk 00:09:24]} {[%emt 00:11:35]} 32. Nxa4 {[%clk 00:11:15]}
{[%emt 00:00:39]} Ne6 {[%clk 00:06:52]} {[%emt 00:03:02]} 33. h5 {[%clk
00:10:32]} {[%emt 00:01:13]} gxh5 {[%clk 00:07:06]} {[%emt 00:00:15]} 34. gxf6
{[%clk 00:10:28]} {[%emt 00:00:34]} Rxf6 {[%clk 00:06:58]} {[%emt 00:00:39]} 35.
Rxh5 {[%clk 00:10:36]} {[%emt 00:00:21]} Nf8 {[%clk 00:06:08]} {[%emt
00:01:21]} 36. Qb8 {[%clk 00:09:06]} {[%emt 00:01:58]} h6 {[%clk 00:04:51]}
{[%emt 00:01:49]} 37. R1h3 {[%clk 00:08:03]} {[%emt 00:01:31]} Kh7 {[%clk
00:04:50]} {[%emt 00:00:33]} 38. Nc5 {[%clk 00:07:29]} {[%emt 00:01:04]} Qg7
{[%clk 00:03:38]} {[%emt 00:01:41]} 39. Kb1 {[%clk 00:06:48]} {[%emt 00:01:12]}
Rg6 {[%clk 00:03:19]} {[%emt 00:00:49]} 40. Nd3 {[%clk 00:06:35]} {[%emt
00:00:42]} Rge6 {[%clk 00:02:31]} {[%emt 00:01:19]} 41. Rf5 {[%clk 00:02:54]}
{[%emt 00:04:08]} Ng6 {[%clk 00:02:04]} {[%emt 00:00:59]} 42. Rg3 {[%clk
00:02:58]} {[%emt 00:00:24]} Qe7 {[%clk 00:01:23]} {[%emt 00:01:13]} 43. Qb4
{[%clk 00:15:01]} {[%emt 00:03:55]} Rd8 {[%clk 00:14:15]} {[%emt 00:03:11]} 44.
Qd2 {[%clk 00:14:44]} {[%emt 00:00:45]} Rf8 {[%clk 00:12:49]} {[%emt 00:01:57]}
45. Rh3 {[%clk 00:13:54]} {[%emt 00:01:20]} Qg7 {[%clk 00:10:30]} {[%emt
00:02:49]} 46. Qh2 {[%clk 00:11:53]} {[%emt 00:02:30]} Rfe8 {[%clk 00:06:47]}
{[%emt 00:04:15]} 47. Rfh5 {[%clk 00:11:30]} {[%emt 00:00:51]} Nf4 {[%emt
00:04:02]} 48. Nxf4 {[%clk 00:11:18]} {[%emt 00:00:40]} exf4 {[%clk 00:03:45]}
{[%emt 00:00:04]} 49. Qxf4 {[%clk 00:11:24]} {[%emt 00:00:23]} Rf8 {[%clk
00:03:32]} {[%emt 00:00:44]} 50. Rf5 {[%clk 00:10:32]} {[%emt 00:01:22]} Rff6
{[%clk 00:02:36]} {[%emt 00:01:25]} 51. Rg3 {[%clk 00:10:27]} {[%emt 00:00:34]}
Qf7 {[%clk 00:02:36]} {[%emt 00:00:32]} 52. Rxf6 {[%clk 00:09:26]} {[%emt
00:01:30]} Rxf6 {[%clk 00:02:53]} {[%emt 00:00:14]} 53. Qb8 {[%clk 00:07:58]}
{[%emt 00:01:46]} Qd7 {[%clk 00:00:37]} {[%emt 00:02:58]} 54. Qg8# {[%emt
00:00:18]} 1-0

[Event "Polofinale MCR junioru 2023"]
[Site "Czech Republic"]
[Date "2023.11.14"]
[Round "4.16"]
[White "Janous, Marek"]
[Black "Fizerova, Lucie"]
[Result "1-0"]
[TimeControl "90 min per 40 moves + 15 min + 30 sec / move from move 1"]
[WhiteFideId "23709650"]
[BlackFideId "385115"]
[WhiteElo "2098"]
[BlackElo "1886"]

1. b3 {[%clk 01:29:56]} {[%emt 00:01:04]} d5 {[%clk 01:29:14]} {[%emt
00:01:46]} 2. Bb2 {[%clk 01:30:08]} {[%emt 00:00:18]} c5 {[%clk 01:28:57]}
{[%emt 00:00:47]} 3. e3 {[%clk 01:30:27]} {[%emt 00:00:11]} Nc6 {[%clk
01:28:44]} {[%emt 00:00:43]} 4. Bb5 {[%clk 01:29:22]} {[%emt 00:01:34]} Bf5
{[%clk 01:25:42]} {[%emt 00:03:32]} 5. Nf3 {[%clk 01:28:39]} {[%emt 00:01:13]}
a6 {[%clk 01:24:29]} {[%emt 00:01:44]} 6. Bxc6+ {[%clk 01:28:28]} {[%emt
00:00:41]} bxc6 {[%clk 01:24:54]} {[%emt 00:00:05]} 7. O-O {[%clk 01:28:47]}
{[%emt 00:00:11]} Nf6 {[%clk 01:23:47]} {[%emt 00:01:37]} 8. d3 {[%clk
01:29:00]} {[%emt 00:00:16]} e6 {[%clk 01:22:37]} {[%emt 00:01:40]} 9. Nbd2
{[%clk 01:29:15]} {[%emt 00:00:15]} Be7 {[%clk 01:21:36]} {[%emt 00:01:31]} 10.
Ne5 {[%clk 01:28:32]} {[%emt 00:01:12]} Qc7 {[%clk 01:20:20]} {[%emt 00:01:47]}
11. f4 {[%clk 01:28:14]} {[%emt 00:00:47]} O-O {[%clk 01:18:10]} {[%emt
00:02:40]} 12. Qe1 {[%clk 01:27:31]} {[%emt 00:01:13]} h6 {[%clk 01:14:38]}
{[%emt 00:04:03]} 13. Ndf3 {[%clk 01:15:13]} {[%emt 00:12:47]} Rfd8 {[%clk
01:05:54]} {[%emt 00:09:15]} 14. h3 {[%clk 01:04:13]} {[%emt 00:11:30]} Bh7
{[%clk 00:57:37]} {[%emt 00:08:47]} 15. Qg3 {[%clk 00:43:24]} {[%emt 00:21:18]}
Nh5 {[%clk 00:55:12]} {[%emt 00:02:56]} 16. Qf2 {[%clk 00:43:04]} {[%emt
00:00:49]} Nf6 {[%clk 00:39:56]} {[%emt 00:15:47]} 17. g4 {[%clk 00:37:41]}
{[%emt 00:05:53]} Nd7 {[%clk 00:38:33]} {[%emt 00:01:53]} 18. Nxd7 {[%clk
00:36:23]} {[%emt 00:01:48]} Qxd7 {[%clk 00:38:44]} {[%emt 00:00:19]} 19. Kh1
{[%clk 00:32:19]} {[%emt 00:04:34]} Qb7 {[%clk 00:34:26]} {[%emt 00:04:48]} 20.
Rg1 {[%clk 00:27:58]} {[%emt 00:04:51]} c4 {[%clk 00:33:30]} {[%emt 00:01:26]}
21. g5 {[%clk 00:28:12]} {[%emt 00:00:16]} h5 {[%clk 00:32:33]} {[%emt
00:01:27]} 22. Qe2 {[%emt 00:12:08]} cxd3 {[%clk 00:30:15]} 23. cxd3 {[%clk
00:19:45]} {[%emt 00:00:06]} Bd6 {[%clk 00:28:24]} {[%emt 00:02:20]} 24. g6
{[%clk 00:09:58]} {[%emt 00:10:18]} Bxg6 {[%clk 00:28:05]} {[%emt 00:00:49]} 25.
Nh4 {[%clk 00:08:18]} {[%emt 00:02:10]} Kh7 {[%clk 00:26:50]} {[%emt 00:01:45]}
26. Qg2 {[%clk 00:06:54]} {[%emt 00:01:53]} d4 {[%clk 00:22:35]} {[%emt
00:04:45]} 27. Bxd4 {[%clk 00:03:12]} {[%emt 00:04:13]} Rab8 {[%clk 00:21:05]}
{[%emt 00:01:59]} 28. Bb2 {[%clk 00:02:20]} {[%emt 00:01:22]} c5 {[%clk
00:19:08]} {[%emt 00:02:27]} 29. e4 {[%clk 00:02:32]} {[%emt 00:00:18]} Bf8
{[%clk 00:16:27]} {[%emt 00:03:11]} 30. Nxg6 {[%clk 00:01:52]} {[%emt
00:01:11]} fxg6 {[%clk 00:16:38]} {[%emt 00:00:18]} 31. Qxg6+ {[%clk 00:02:14]}
{[%emt 00:00:08]} Kg8 {[%clk 00:16:51]} {[%emt 00:00:17]} 32. Qxe6+ {[%clk
00:02:09]} {[%emt 00:00:35]} Qf7 {[%clk 00:17:02]} {[%emt 00:00:19]} 33. Qxf7+
{[%clk 00:01:37]} {[%emt 00:01:02]} Kxf7 {[%clk 00:17:26]} {[%emt 00:00:06]} 34.
Rad1 {[%clk 00:01:47]} {[%emt 00:00:19]} 1-0